Cogmind - Beta 9.1 @@@ ROGUE MODE // 2019.11.02 @ 01:18:25 Player: MrPainting Result: Self-destructed Performance ------------- Evolutions (1) 500 Regions Visited (3) 600 Robots Destroyed (43) 215 Value Destroyed (904) 904 Prototype IDs (3) 60 Alien Tech Used (0) 0 Bonus (-1) -1 TOTAL SCORE: 2278 Bonus ------- Follower Combat Kills 39 Friendly Fire -40 Cogmind --------- Core Integrity 62/400 Matter 300/300 Energy 280/280 System Corruption 0% Temperature Cool (16) Location -9/Materials Parts ------- Power (1) Heavy Ion Engine Propulsion (4) Aluminum Leg Hover Unit Hover Unit Utility (2) Large Storage Unit Weight Redist. System Weapon (2) Improved Medium Laser Improved Medium Laser Inventory (10) Heavy Ion Engine Flight Unit Flight Unit Compact Matter Pod (150) Compact Matter Pod (150) Armor Integrity Analyzer Hardlight Generator Long-range Tractor Beam Advanced Beam Cannon Peak State ------------ Power Heavy Ion Engine Propulsion Flight Unit Flight Unit Flight Unit Flight Unit Utility Medium Storage Unit Weight Redist. System Weapon Improved Medium Laser Improved Medium Laser Inventory Heavy Ion Engine Compact Matter Pod Compact Matter Pod Armor Integrity Analyzer Hardlight Generator Long-range Tractor Beam Improved Medium Laser [Rating: 18] Favorites ----------- Power Light Nuclear Core Engine Ion Engine Power Core Light Nuclear Core Propulsion Hover Unit Treads Light Treads Leg Aluminum Leg Hover Unit Hover Unit Flight Unit Flight Unit Utility Small Storage Unit Device Heat Sink Storage Small Storage Unit Processor Signal Interpreter Weapon Medium Laser Energy Gun Medium Laser Energy Cannon Advanced Beam Cannon Ballistic Gun Light Assault Rifle Ballistic Cannon Light Cannon Launcher Grenade Launcher Build | -11 -10 -10 -9 ------- Run | Scr Mat Min Mat Slots Evolved 2 | . . . 2 Power . | . . . . Propulsion 2 | . . . 2 Utility . | . . . . Weapon . | . . . . Parts Attached 48 | 5 11 13 19 Power 5 | 1 1 2 1 Engine 3 | 1 1 . 1 Core 2 | . . 2 . Reactor . | . . . . Propulsion 15 | 2 3 2 8 Treads 2 | 2 . . . Leg 1 | . . . 1 Wheel . | . . . . Hover 7 | . 3 2 2 Flight 5 | . . . 5 Utility 8 | . 2 2 4 Device 3 | . . 2 1 Storage 3 | . 1 . 2 Processor 2 | . 1 . 1 Hackware . | . . . . Protection . | . . . . Artifact . | . . . . Weapon 20 | 2 5 7 6 Energy Gun 13 | 2 4 2 5 Energy Cannon 1 | . . . 1 Ballistic Gun 3 | . . 3 . Ballistic Cannon 1 | . . 1 . Launcher 2 | . 1 1 . Special Weapon . | . . . . Impact Weapon . | . . . . Slashing Weapon . | . . . . Piercing Weapon . | . . . . Special Melee Weapon . | . . . . Unidentified Prototypes 3 | . . . 3 Parts Lost 12 | . 3 6 3 Power 2 | . 1 1 . Propulsion 3 | . . 1 2 Utility 1 | . . 1 . Weapon 6 | . 2 3 1 Highest Loss Streak 4 | . 3 4 2 Average Slot Usage (%) 92 | . 84 95 92 Engine 5 | . 10 1 7 Core 7 | . . 12 3 Treads 3 | . 17 . . Leg 1 | . . . 4 Hover 17 | . 10 26 5 Flight 8 | . . . 31 Device 7 | . . 11 7 Storage 13 | . 14 14 11 Processor 1 | . 5 1 . Energy Gun 14 | . 24 12 11 Energy Cannon 1 | . . . 4 Ballistic Gun 6 | . . 12 2 Ballistic Cannon 1 | . . 1 1 Naked Turns . | . . . . Heaviest Build 31 | 7 13 14 31 Greatest Support 40 | 40 40 18 22 Greatest Overweight (x) 3 | . 1 2 3 Average Overweight (x) . | . . . . Largest Inventory Capacity 10 | 4 6 6 10 Average Capacity 6 | 4 6 6 8 Most Carried 10 | 4 6 6 10 Average Carried 5 | 1 3 4 7 Final Capacity 10 | 4 6 6 10 Final Carried 9 | 1 6 6 9 Class Distribution -------------------- 59% | Scavenger-Mutant 33% | Mutant 6% | Scavenger-Sprinter Dominant Class ---------------- Mutant | -10/Materials Scavenger-Mutant | -10/Mines Scavenger-Mutant | -9/Materials Resources | -11 -10 -10 -9 ----------- Run | Scr Mat Min Mat Matter Collected 784 | 245 175 169 195 Remotely . | . . . . Salvage Created 1235 | . 464 257 514 Parts 86 | . 33 23 30 Haulers Intercepted 5 | . 2 . 3 Recyclers Shooed 4 | . 2 1 1 Parts Field Recycled . | . . . . Retrieved Matter . | . . . . Parts Self-Destructed . | . . . . Prevented . | . . . . Kills | -11 -10 -10 -9 ------- Run | Scr Mat Min Mat Combat Hostiles Destroyed 28 | . 11 10 7 Guns 18 | . 5 8 5 Cannons 3 | . . 1 2 AOE 6 | . 6 . . Classes Destroyed 10 | . 7 1 2 Worker 2 | . . . 2 Builder 1 | . 1 . . Tunneler 1 | . . 1 . Hauler 5 | . 2 . 3 Recycler 2 | . 1 . 1 Operator 1 | . 1 . . Watcher 3 | . 2 . 1 Swarmer 11 | . 3 6 2 Grunt 16 | . 8 4 4 Sentry 1 | . . . 1 Best Kill Streak 11 | . 11 3 4 Combat Bots Only 7 | . 7 3 2 Max Kills in Single Turn 3 | . 3 1 1 Gunslinging . | . . . . Exploded 2 | . 2 . . Melee . | . . . . Uniques/NPCs Destroyed . | . . . . Combat | -11 -10 -10 -9 -------- Run | Scr Mat Min Mat Damage Taken 1812 | . 540 605 667 Core 537 | . 68 131 338 Absorbed by Shields . | . . . . Core Remaining (%) 60 | 100 . 20 . Volleys Fired 112 | . 35 37 40 Largest 2 | . 2 2 2 Hottest 124 | . 100 100 124 Shots Fired 187 | . 64 61 62 Gun 153 | . 57 50 46 Cannon 26 | . . 10 16 Launcher 8 | . 7 1 . Special . | . . . . Kinetic 35 | . . 29 6 Thermal 144 | . 57 31 56 Explosive 8 | . 7 1 . Electromagnetic . | . . . . Robot Hit Streak 14 | . 14 9 7 Robot Miss Streak 5 | . 2 5 3 Penetration Max . | . . . . Secondary Targets 2 | . 1 . 1 Max Gunslinging Chain 1 | . 1 . 1 Shots Hit Robots 115 | . 52 27 36 Core Hits 68 | . 35 15 18 Critical Hits . | . . . . Critical Kills . | . . . . Critical Parts Destroyed . | . . . . Melee Attacks . | . . . . Impact . | . . . . Slashing . | . . . . Piercing . | . . . . Sneak Attacks . | . . . . Combat Hostiles . | . . . . Follow-up Attacks . | . . . . Damage Inflicted 2393 | . 1279 418 696 Guns 1274 | . 506 296 472 Cannons 310 | . . 86 224 Explosions 809 | . 773 36 . Melee . | . . . . Ramming . | . . . . Kinetic 190 | . . 134 56 Thermal 1720 | . 832 248 640 Explosive 483 | . 447 36 . Electromagnetic . | . . . . Impact . | . . . . Slashing . | . . . . Piercing . | . . . . Highest Corruption . | . . . . Average Corruption . | . . . . Corruption Purged . | . . . . Overload Shots . | . . . . Overflow Damage 70 | . 51 . 19 Projectiles 19 | . . . 19 Explosions 51 | . 51 . . Melee . | . . . . Knockbacks 1 | . . 1 . Impact . | . . . . Kinetic 1 | . . 1 . Secondary . | . . . . Self-Inflicted Damage 109 | . 77 32 . Shots 5 | . 4 1 . Rammed . | . . . . Targets Rammed . | . . . . Kicked . | . . . . Crushed . | . . . . Highest Temperature 626 | . 135 256 626 Average Temperature 135 | . 51 95 217 Received Heat Transfer 516 | . 189 255 72 Effects 32 | . . 2 30 Shutdowns 4 | . . . 4 Energy Bleed 5 | . . . 5 Interference 8 | . . 2 6 Matter Decay 1 | . . . 1 Short Circuit 2 | . . . 2 Damage (major) 7 | . . . 7 Damage (core) 5 | . . . 5 Siege Activations . | . . . . Robots Corrupted . | . . . . Combat Hostiles . | . . . . Parts Fried . | . . . . Impact Corruptions . | . . . . Robots Melted 1 | . . 1 . Combat Hostiles 1 | . . 1 . Parts Melted 5 | . 2 . 3 Heat Transferred 3593 | . 1521 740 1332 Parts Sabotaged . | . . . . Parts Stolen . | . . . . Parts Stripped . | . . . . Power Chain Reactions . | . . . . Missiles Intercepted . | . . . . Alert | -11 -10 -10 -9 ------- Run | Scr Mat Min Mat Peak Influence 323 | . 323 142 218 Average Influence 105 | . 198 64 116 Maximum Alert Level 1 | . 1 . 1 Low Security (%) 77 | . . . . Level 1 22 | . . . . Level 2 . | . . . . Level 3 . | . . . . Level 4 . | . . . . Level 5 . | . . . . High Security . | . . . . Max Security . | . . . . Squads Dispatched 1 | . . . 1 Investigation 1 | . . . 1 Extermination . | . . . . Reinforcement . | . . . . Assault . | . . . . Garrison . | . . . . Intercept . | . . . . Construction Impeded . | . . . . Haulers Reinforced . | . . . . Stealth | -11 -10 -10 -9 --------- Run | Scr Mat Min Mat Distress Signals 2 | . 2 . . Communications Jammed . | . . . . Distress Signals . | . . . . Times Spotted 41 | . 17 10 14 Peak Tracking Total 6 | . 6 3 3 Tactical Retreats 2 | . 2 . . Traps | -11 -10 -10 -9 ------- Run | Scr Mat Min Mat Traps Triggered . | . . . . Indirectly . | . . . . Trap Hack Attempts . | . . . . Triggered . | . . . . Disarmed . | . . . . Reprogrammed . | . . . . Reused . | . . . . Traps Extracted . | . . . . Installed . | . . . . Triggered . | . . . . Machines | -11 -10 -10 -9 ---------- Run | Scr Mat Min Mat Machines Disabled 4 | . 3 1 . Max in Single Turn 3 | . 3 1 . Machines Sabotaged . | . . . . Garrisons Compromised . | . . . . Overloaded Fab Kills . | . . . . Fab Network Shutdowns . | . . . . Hacking | -11 -10 -10 -9 --------- Run | Scr Mat Min Mat Machines Accessed 1 | . . . 1 Terminals 1 | . . . 1 Fabricators . | . . . . Repair Stations . | . . . . Recycling Units . | . . . . Scanalyzers . | . . . . Garrison Access . | . . . . Total Hacks 4 | . . . 4 Successful 2 | . . . 2 Failed 2 | . . . 2 Catastrophic . | . . . . Database Lockouts . | . . . . Manual 4 | . . . 4 Terminals 4 | . . . 4 Fabricators . | . . . . Repair Stations . | . . . . Recycling Units . | . . . . Scanalyzers . | . . . . Garrison Access . | . . . . Terminal Hacks 1 | . . . 1 Terminal Index 1 | . . . 1 Fabricator Hacks . | . . . . Repair Station Hacks . | . . . . Recycling Unit Hacks . | . . . . Scanalyzer . | . . . . Garrison Access Hacks . | . . . . Unauthorized Hacks 2 | . . . 2 Terminals 1 | . . . 1 Botnet 1 | . . . 1 Fabricators . | . . . . Repair Stations . | . . . . Recycling Units . | . . . . Scanalyzers . | . . . . Garrison Access . | . . . . Data Cores Recovered . | . . . . Used . | . . . . Hacking Detections 1 | . . . 1 Full Trace Events . | . . . . Feedback Events . | . . . . Feedback Blocked . | . . . . Robot Schematics Acquired . | . . . . Robots Built . | . . . . Matter . | . . . . Time . | . . . . Total Robot Build Rating . | . . . . Part Schematics Acquired . | . . . . Parts Built . | . . . . Matter . | . . . . Time . | . . . . Total Part Build Rating . | . . . . Parts Repaired . | . . . . Time . | . . . . Parts Recycled . | . . . . Recycled Matter . | . . . . Retrieved Matter . | . . . . Retrieved Components . | . . . . Parts Scanalyzed . | . . . . Part Schematics Acquired . | . . . . Parts Damaged . | . . . . Bothacking | -11 -10 -10 -9 ------------ Run | Scr Mat Min Mat Used RIF Installer . | . . . . Robots Hacked . | . . . . Non-combat . | . . . . Combat . | . . . . Robot Hacks Applied . | . . . . Relay Couplers Released . | . . . . Robots Rewired . | . . . . Allies Hacked . | . . . . Hacks Repelled . | . . . . Allies | -11 -10 -10 -9 -------- Run | Scr Mat Min Mat Total Allies 1 | . . 1 . Largest Group 1 | . . 1 1 Highest-Rated Group 31 | . . 31 31 Highest-Rated Ally 31 | . . 31 31 Total Orders . | . . . . Ally Attacks 10 | . . . 10 Total Damage 65 | . . . 65 Kills 3 | . . . 3 Allies Corrupted . | . . . . Allies Melted . | . . . . Intel | -11 -10 -10 -9 ------- Run | Scr Mat Min Mat Robot Analysis Total . | . . . . Derelict Logs Recovered 1 | . . 1 . Drone Launches . | . . . . Drone Recoveries . | . . . . Exploration | -11 -10 -10 -9 ------------- Run | Scr Mat Min Mat Turns Passed 1853 | 57 401 896 499 Spaces Moved 1352 | 37 219 755 341 Core 15 | 15 . . . Treads 111 | 22 89 . . Legs 46 | . . . 46 Wheels . | . . . . Hover 940 | . 130 755 55 Flight 240 | . . . 240 Fastest Speed 31 | 50 56 56 31 Average Speed 99 | 115 119 97 89 Slowest Speed 210 | 160 160 180 210 Overloaded Moves . | . . . . Propulsion Burnouts . | . . . . Robots Hopped . | . . . . Cave-ins Triggered . | . . . . Exploration Rate (%) 40 | 4 29 100 29 Regions Visited 3 Branch Regions 1 Pre-discovered Areas 1 | . . 1 . Known Exits Taken 1 | . 1 . . Unknown Exits Taken 2 | 1 . 1 . Scrap Searched 2 | . . 2 . Spaces Dug . | . . . . Terrain Destroyed 58 | . 51 7 . Melee . | . . . . Projectile . | . . . . AOE 58 | . 51 7 . Actions | -11 -10 -10 -9 --------- Run | Scr Mat Min Mat Total 1679 | 51 297 858 473 Wait 90 | 4 8 30 48 Move 1349 | 36 218 754 341 Hop . | . . . . Pick Up 50 | 5 17 13 15 Fast Attach 7 | 2 . 2 3 Attach 24 | 3 7 4 10 Detach 1 | . . . 1 Swap 17 | . 4 7 6 Drop 29 | 1 8 11 9 Fire 112 | . 35 37 40 Melee . | . . . . Ram . | . . . . Kick . | . . . . Crush . | . . . . Escape Stasis . | . . . . Rewire . | . . . . Trap . | . . . . Miscellaneous . | . . . . Route ------- -11/Scrapyard -10/Materials (discovered 2 exits: *Min x2) -10/Mines (discovered 2 exits: *Mat x2) -9/Materials History --------- Turn | Location | Event 35 | -11/Scrapyard | Discovered new exit (range 12) 58 | -11/Scrapyard | Entered Materials 193 | -10/Materials | Discovered new exit (range 16) 236 | -10/Materials | Destroyed 7 combat bots 244 | -10/Materials | Lost 3 parts (1p2w) 298 | -10/Materials | Discovered new exit (range 15) 310 | -10/Materials | Identified exit to Mines 336 | -10/Materials | Build established: Mutant 459 | -10/Materials | Entered Mines 566 | -10/Mines | Lost 4 parts (1p3w) 615 | -10/Mines | Core integrity fell below 50% 860 | -10/Mines | Build established: Scavenger-Mutant 1191 | -10/Mines | Learned location of Zion (-7) 1216 | -10/Mines | Discovered new exit (range 7) 1319 | -10/Mines | Discovered new exit (range 13) 1331 | -10/Mines | Received a Mining Laser from a helpful Derelict 1355 | -10/Mines | Entered Materials 1355 | -9/Materials | Accompanied by 1 ally 1355 | -9/Materials | Evolved 2 slots: Propulsion x2 1582 | -9/Materials | Core integrity fell below 50% 1808 | -9/Materials | Core integrity fell below 20% 1854 | -9/Materials | Self-destructed Last Messages --------------- 01810_ R-06 Scavenger collects Imp. Heat Sink. 01811_ R-06 Scavenger destroyed. 01811_ Switching to secondary target: Y-45 Defender. 01811_ K-01 Serf collects debris. 01813_ Flight Unit destroyed. 01817_ K-01 Serf collects debris. 01818_ Y-45 Defender destroyed. 01819_ R-06 Scavenger collects Imp. Heat Sink. 01820_ K-01 Serf collects debris. 01824_ K-01 Serf destroyed. 01830_ Acquired 10 matter. 01833_ Overheating: System interference. 01833_ Weight Redist. System temporarily disabled. 01833_ Imp. Medium Laser temporarily disabled. 01847_ R-06 Scavenger collects Heat Sink. 01849_ R-06 Scavenger collects Hvy. Assault Rifle. 01850_ C-30 ARC bursts open, deploying its payload. 01850_ G-47 Trooper unfolds itself. 01850_ G-34 Mercenary unfolds itself. 01853_ R-06 Scavenger collects Beam Rifle. Map ----- +----------------------------------------------------+ | ????????????????????????????????????# """ """ #??? | | ????????????????????????????????????# """ """ #??? | | ????????????????????????????????????# #??? | | ????????????????????????????????????? ??? | | ??????????????????????????????????????? ???? | | ??????????????????????????###+###########+##### | | ?????????????????????????# | | ?????????????????????????+ % | | ?????????????????????????# % | | ???????????????????????????# ########### % ####### | | ??????????????????????????????? ????# %#?????? | | ?????????????????????????????? # #?????? | | ????????????????????????????????? + ####### | | ???????????????????????????????????????# % | | ???????????????????????????????????????#= % | | ???????????????????????????????????????#% T | | ???????????????????????????????????????# | | ???????????????????????????????????????# """ | | ???????????????????????##+##+#####?????# """ | | ???????????????????????# #?????# """ | | ???????????????????????# !!!#?????# | | ???????????????????????# !!!#?????# | | ???????????????????????# !! #?????# ** | | ????????????????????##?#####;########### ** | | ?????????????????#### # %[= ** | | ???????????# %g g ag @ *=%%* [ | | ????????????????##### # r%%**= [%[ | | ????????????????????###?# ##+####+############[ | | ????????????????????????# #???? #??????????# | | ????????????????????????# #?? [#??????????# | | ????????????????????????# ## #??????????# | | ????????????????????????# ## #??????????# | | ????????????????????????# ## #??????????# | | ????????????????????????# ## #??????????## | | ????????????????????????? ?########???????????#! | | ????????????????????????? ????????????????????#! | | ????????????????????????? ????????????????????##!! | | ????????????????????????? ?????????????????????### | | ????????????????????????? ???????????????????????? | | ????????????????????????? ???????????????????????? | | ????????????????????????? ???????????????????????? | | ?????????????????????????????????????????????????? | | ?????????????????????????????????????????????????? | | ?????????????????????????????????????????????????? | | ?????????????????????????????????????????????????? | | ?????????????????????????????????????????????????? | | ?????????????????????????????????????????????????? | | ?????????????????????????????????????????????????? | | ?????????????????????????????????????????????????? | | ?????????????????????????????????????????????????? | +----------------------------------------------------+ Best States ------------- Heat Dissipation 35 Energy Generation 14 Energy Capacity 280 Matter Stores 300 Matter Capacity 300 Sight Range 20 Terrain Scan Density 10 Additional Mass Support 6 Evasion (%) 63 Recoil Reduction 2 Item Schematics ----------------- None Robot Schematics ------------------ None Fabricated ------------ Nothing Alien Tech Used ----------------- None Achievements -------------- None Challenges ------------ None Game ------ Seed AerolevCentriumPrototype Manual? 0 Play Time 00:21:10 Cumulative 94.0 hours Start 2019.11.02 @ 00:59:00 End 2019.11.02 @ 01:18:25 Sessions 1 Manual Loads 0 Difficulty Rogue Special Mode None Game No. 150 Rogue 150 Adventurer 0 Explorer 0 Win Type - Total 0 Types 0/0/0/0/0/0/0 Lore% 31 Gallery% 45 Achievement% 33 Wizard Run 0 Options --------- ASCII 0 Keyboard 0 Movement Mouse Keybinds 0 Fullscreen 1 Font 18/SmallcapsGlow Map View 76x50 Tactical HUD 1 Map Filters NONE Filters NONE Steam 1 RUN: a74fddb3-0534-40df-bcc6-0090cc68435a